fUSD/lending_fUSD_20241221
["ID","MTS","AMOUNT","RATE_DAILY","PERIOD"]
[346208584,1734775882867,-1129.8,0.0002,2]
[346208585,1734775882877,-500.0,0.0002,2]
[346208586,1734775882887,-500.0,0.0002,2]
[346208587,1734775882896,-3097.42,0.0002,2]
[346208588,1734775882906,-500.0,0.0002,2]
[346208589,1734775882915,-500.0,0.0002,2]
[346208590,1734775882925,-1490.71,0.0002,2]
[346208591,1734775882934,-151.0,0.0002,2]
[346208592,1734775882944,-500.0,0.0002,2]
[346208593,1734775882955,-151.0,0.0002,2]
[346208594,1734775882964,-500.0,0.0002,2]
[346208595,1734775882974,-676.92,0.0002,2]
[346208596,1734775882983,-1565.87,0.0002,2]
[346208597,1734775882993,-4052.02,0.0002,2]
[346208598,1734775883002,-500.0,0.0002,2]
[346208599,1734775883013,-859.98,0.0002,2]
[346208600,1734775883022,-500.0,0.0002,2]
[346208601,1734775883031,-1458.03,0.0002,2]
[346208602,1734775883043,-500.0,0.0002,2]
[346208603,1734775883052,-500.0,0.0002,2]
[346208604,1734775883061,-500.0,0.0002,2]
[346208605,1734775883071,-503.29798943,0.0002,2]
[346208606,1734775883081,-500.0,0.0002,2]
[346208607,1734775883091,-500.0,0.0002,2]
[346208608,1734775883100,-500.0,0.0002,2]
[346208609,1734775883110,-500.0,0.0002,2]
[346208610,1734775883119,-151.308626,0.0002,2]
[346208611,1734775883129,-500.0,0.0002,2]
[346208612,1734775883139,-500.0,0.0002,2]
[346208613,1734775883148,-500.0,0.0002,2]
[346208614,1734775883158,-500.0,0.0002,2]
[346208615,1734775883167,-632.15,0.0002,2]
[346208616,1734775883176,-500.0,0.0002,2]
[346208617,1734775883186,-500.0,0.0002,2]
[346208618,1734775883195,-830.33,0.0002,2]
[346208619,1734775883205,-1009.36,0.0002,2]
[346208620,1734775883214,-858.9,0.0002,2]
[346208621,1734775883224,-1002.4,0.0002,2]
[346208622,1734775883234,-500.0,0.0002,2]
[346208623,1734775883244,-2321.55,0.0002,2]
[346208624,1734775883254,-500.0,0.0002,2]
[346208625,1734775883264,-600.34,0.0002,2]
[346208626,1734775883273,-1104.22,0.0002,2]
[346208627,1734775883283,-764.36,0.0002,2]
[346208628,1734775883293,-500.0,0.0002,2]
[346208629,1734775883302,-151.0,0.0002,2]
[346208630,1734775883312,-151.0,0.0002,2]
[346208631,1734775883321,-500.0,0.0002,2]
[346208632,1734775883331,-500.0,0.0002,2]
[346208633,1734775883340,-4224.23,0.0002,2]
[346208634,1734775883350,-151.0,0.0002,2]
[346208635,1734775883360,-1180.1,0.0002,2]
[346208636,1734775883369,-500.0,0.0002,2]
[346208637,1734775883378,-633.6,0.0002,2]
[346208638,1734775883388,-634.17,0.0002,2]
[346208639,1734775883398,-342.523263,0.0002,2]
[346208640,1734775883407,-500.0,0.0002,2]
[346208641,1734775883416,-1585.36,0.0002,2]
[346208642,1734775883426,-898.1,0.0002,2]
[346208643,1734775883435,-500.0,0.0002,2]
[346208644,1734775883445,-500.0,0.0002,2]
[346208645,1734775883454,-342.523263,0.0002,2]
[346208646,1734775883463,-4622.95,0.0002,2]
[346208647,1734775883473,-1021.92,0.0002,2]
[346208648,1734775883482,-691.59,0.0002,2]
[346208649,1734775883491,-500.0,0.0002,2]
[346208650,1734775883501,-500.0,0.0002,2]
[346208651,1734775883510,-457.26312012,0.0002,2]
[346208652,1734775883520,-500.0,0.0002,2]
[346208653,1734775883530,-151.0,0.0002,2]
[346208654,1734775883539,-500.0,0.0002,2]
[346208655,1734775883549,-1424.85,0.0002,2]
[346208656,1734775883559,-2578.29,0.0002,2]
[346208657,1734775883568,-151.0,0.0002,2]
[346208658,1734775883577,-2579.16,0.0002,2]
[346208659,1734775883586,-151.0,0.0002,2]
[346208660,1734775883595,-500.0,0.0002,2]
[346208661,1734775883604,-500.0,0.0002,2]
[346208662,1734775883614,-151.0,0.0002,2]
[346208663,1734775883623,-754.63,0.0002,2]
[346208664,1734775883632,-500.0,0.0002,2]
[346208665,1734775883641,-500.0,0.0002,2]
[346208666,1734775883650,-500.0,0.0002,2]
[346208667,1734775883659,-788.9,0.0002,2]
[346208668,1734775883668,-500.0,0.0002,2]
[346208669,1734775883677,-2172.59,0.0002,2]
[346208670,1734775883687,-511.82858927,0.0002,2]
[346208671,1734775883696,-500.0,0.0002,2]
[346208672,1734775883705,-1154.56,0.0002,2]
[346208673,1734775883714,-500.0,0.0002,2]
[346208674,1734775883724,-1815.99,0.0002,2]
[346208675,1734775883733,-564.41,0.0002,2]
[346208676,1734775883742,-500.0,0.0002,2]
[346208677,1734775883751,-500.0,0.0002,2]
[346208678,1734775883760,-151.791203,0.0002,2]
[346208679,1734775883770,-2330.72,0.0002,2]
[346208680,1734775883780,-765.63,0.0002,2]
[346208681,1734775883789,-2027.75,0.0002,2]
[346208682,1734775883798,-692.78,0.0002,2]
[346208683,1734775883808,-1929.85,0.0002,2]
[346208684,1734775883818,-501.04421518,0.0002,2]
[346208685,1734775883829,-503.68221905,0.0002,2]
[346208686,1734775883839,-1824.57,0.0002,2]
[346208687,1734775883850,-3085.76,0.0002,2]
[346208688,1734775883861,-3050.1,0.0002,2]
[346208689,1734775883871,-500.0,0.0002,2]
[346208690,1734775883883,-1827.52,0.0002,2]
[346208691,1734775883892,-500.0,0.0002,2]
[346208692,1734775883901,-649.52,0.0002,2]
[346208693,1734775883911,-5765.15,0.0002,2]
[346208694,1734775883920,-500.0,0.0002,2]
[346208695,1734775883930,-969.47,0.0002,2]
[346208696,1734775883939,-870.4,0.0002,2]
[346208697,1734775883949,-500.0,0.0002,2]
[346208698,1734775883958,-606.49,0.0002,2]
[346208699,1734775883968,-818.72,0.0002,2]
[346208700,1734775883978,-1170.36,0.0002,2]
[346208701,1734775883987,-1969.88,0.0002,2]
[346208702,1734775883996,-500.0,0.0002,2]
[346208703,1734775884006,-151.0,0.0002,2]
[346208704,1734775884015,-500.0,0.0002,2]
[346208705,1734775884024,-1351.85,0.0002,2]
[346208706,1734775884034,-500.0,0.0002,2]
[346208707,1734775884047,-500.0,0.0002,2]
[346208708,1734775884056,-1171.29,0.0002,2]
[346208709,1734775884065,-905.62,0.0002,2]
[346208710,1734775884074,-151.0,0.0002,2]
[346208711,1734775884083,-500.0,0.0002,2]
[346208712,1734775884093,-3955.31,0.0002,2]
[346208713,1734775884102,-500.0,0.0002,2]
[346208714,1734775884112,-500.0,0.0002,2]
[346208715,1734775884123,-3406.92,0.0002,2]
[346208716,1734775884136,-3714.4,0.0002,2]
[346208717,1734775884147,-648.48460196,0.0002,2]
[346208718,1734775884158,-551.67,0.0002,2]
[346208719,1734775884168,-1872.87,0.0002,2]
[346208720,1734775884178,-1524.84,0.0002,2]
[346208721,1734775884187,-1092.92,0.0002,2]
[346208722,1734775884197,-500.0,0.0002,2]
[346208723,1734775884207,-3322.3,0.0002,2]
[346208724,1734775884220,-500.0,0.0002,2]
[346208725,1734775884229,-151.0,0.0002,2]
[346208726,1734775884239,-500.0,0.0002,2]
[346208727,1734775884248,-500.0,0.0002,2]
[346208728,1734775884257,-151.0,0.0002,2]
[346208729,1734775884266,-818.84367,0.0002,2]
[346208730,1734775884289,-500.0,0.0002,2]
[346208731,1734775884298,-500.0,0.0002,2]
[346208732,1734775884307,-500.0,0.0002,2]
[346208733,1734775884317,-500.0,0.0002,2]
[346208734,1734775884328,-2695.44,0.0002,2]
[346208735,1734775884338,-151.0,0.0002,2]
[346208736,1734775884348,-818.84367,0.0002,2]
[346208737,1734775884359,-572.66,0.0002,2]
[346208738,1734775884368,-500.0,0.0002,2]
[346208739,1734775884377,-500.0,0.0002,2]
[346208740,1734775884387,-883.25,0.0002,2]
[346208741,1734775884397,-500.0,0.0002,2]
[346208742,1734775884407,-947.22,0.0002,2]
[346208743,1734775884416,-500.0,0.0002,2]
[346208744,1734775884426,-2084.85,0.0002,2]
[346208745,1734775884435,-2249.96,0.0002,2]
[346208746,1734775884446,-1472.03,0.0002,2]
[346208747,1734775884456,-500.0,0.0002,2]
[346208748,1734775884650,-1123.42,0.0002,2]
[346208749,1734775884660,-500.0,0.0002,2]
[346208750,1734775884670,-500.0,0.0002,2]
[346208751,1734775884679,-5683.01,0.0002,2]
[346208752,1734775884688,-2186.91,0.0002,2]
[346208753,1734775884698,-500.0,0.0002,2]
[346208754,1734775884709,-2620.07,0.0002,2]
[346208755,1734775884718,-500.0,0.0002,2]
[346208756,1734775884727,-820.18,0.0002,2]
[346208757,1734775884737,-4201.22,0.0002,2]
[346208758,1734775884746,-5057.25,0.0002,2]
[346208759,1734775884758,-500.0,0.0002,2]
[346208760,1734775884768,-497.86679359,0.0002,2]
[346208761,1734775884777,-10381.66,0.0002,2]
[346208762,1734775884787,-4650.6,0.0002,2]
[346208763,1734775884796,-500.0,0.0002,2]
[346208764,1734775884805,-151.0,0.0002,2]
[346208765,1734775884815,-561.54,0.0002,2]
[346208766,1734775884824,-1183.78,0.0002,2]
[346208767,1734775884833,-500.0,0.0002,2]
[346208768,1734775884842,-500.0,0.0002,2]
[346208769,1734775884851,-500.0,0.0002,2]
[346208770,1734775884860,-525.46,0.0002,2]
[346208771,1734775884869,-3296.73,0.0002,2]
[346208772,1734775884878,-3947.52,0.0002,2]
[346208773,1734775884887,-500.0,0.0002,2]
[346208774,1734775884897,-500.0,0.0002,2]
[346208775,1734775884907,-3535.33,0.0002,2]
[346208776,1734775884916,-500.0,0.0002,2]
[346208777,1734775884926,-6490.03,0.0002,2]
[346208778,1734775884935,-500.0,0.0002,2]
[346208779,1734775884944,-500.0,0.0002,2]
[346208780,1734775884954,-500.0,0.0002,2]
[346208781,1734775884963,-1083.48,0.0002,2]
[346208782,1734775884971,-845.6,0.0002,2]
[346208783,1734775884980,-500.0,0.0002,2]
[346208784,1734775884989,-928.79,0.0002,2]
[346208785,1734775884998,-500.0,0.0002,2]
[346208786,1734775885008,-500.0,0.0002,2]
[346208787,1734775885018,-3391.23,0.0002,2]
[346208788,1734775885027,-1144.7,0.0002,2]
[346208789,1734775885036,-500.0,0.0002,2]
[346208790,1734775885050,-500.0,0.0002,2]
[346208791,1734775885059,-5742.88,0.0002,2]
[346208792,1734775885068,-2977.76,0.0002,2]
[346208793,1734775885077,-5965.75,0.0002,2]
[346208794,1734775885087,-500.0,0.0002,2]
[346208795,1734775885096,-500.0,0.0002,2]
[346208796,1734775885104,-1382.72,0.0002,2]
[346208797,1734775885114,-500.0,0.0002,2]
[346208798,1734775885123,-2377.95,0.0002,2]
[346208799,1734775885132,-500.0,0.0002,2]
[346208800,1734775885141,-7551.88,0.0002,2]
[346208801,1734775885150,-4746.58,0.0002,2]
[346208802,1734775885159,-2769.64,0.0002,2]
[346208803,1734775885168,-151.0,0.0002,2]
[346208804,1734775885177,-500.0,0.0002,2]
[346208805,1734775885186,-1797.59,0.0002,2]
[346208806,1734775885195,-500.0,0.0002,2]
[346208807,1734775885204,-764.69,0.0002,2]
[346208808,1734775885213,-500.0,0.0002,2]
[346208809,1734775885222,-1876.28,0.0002,2]
[346208810,1734775885231,-11203.57,0.0002,2]
[346208811,1734775885241,-151.0,0.0002,2]
[346208812,1734775885250,-500.0,0.0002,2]
[346208813,1734775885259,-3768.97,0.0002,2]
[346208814,1734775885268,-500.0,0.0002,2]
[346208815,1734775885277,-500.0,0.0002,2]
[346208816,1734775885286,-500.0,0.0002,2]
[346208817,1734775885295,-1762.7,0.0002,2]
[346208818,1734775885304,-1397.67,0.0002,2]
[346208819,1734775885313,-3624.71,0.0002,2]
[346208820,1734775885324,-500.0,0.0002,2]
[346208821,1734775885333,-500.0,0.0002,2]
[346208822,1734775885343,-151.0,0.0002,2]
[346208823,1734775885352,-20949.33,0.0002,2]
[346208824,1734775885361,-500.0,0.0002,2]
[346208825,1734775885370,-601.09763339,0.0002,2]
[346208826,1734775885379,-150.0,0.0002,2]
[346208827,1734775885388,-500.0,0.0002,2]
[346208828,1734775885397,-151.0,0.0002,2]
[346208829,1734775885406,-500.0,0.0002,2]
[346208830,1734775885415,-500.0,0.0002,2]
[346208831,1734775885424,-500.0,0.0002,2]
[346208832,1734775885434,-500.0,0.0002,2]
[346208833,1734775885443,-510.79627414,0.0002,2]
[346208834,1734775885452,-500.0,0.0002,2]
[346208835,1734775885461,-1049.07,0.0002,2]
[346208836,1734775885470,-3136.63,0.0002,2]
[346208837,1734775885479,-1027.9,0.0002,2]
[346208838,1734775885488,-798.1,0.0002,2]
[346208839,1734775885497,-500.0,0.0002,2]
[346208840,1734775885506,-6628.04,0.0002,2]
[346208841,1734775885517,-660.71,0.0002,2]
[346208842,1734775885526,-500.0,0.0002,2]
[346208843,1734775885535,-4520.65391543,0.0002,2]
[346208844,1734775885544,-500.0,0.0002,2]
[346208845,1734775885553,-504.61543801,0.0002,2]
[346208846,1734775885562,-505.05914017,0.0002,2]
[346208847,1734775885571,-500.0,0.0002,2]
[346208848,1734775885580,-500.0,0.0002,2]
[346208849,1734775885589,-500.0,0.0002,2]
[346208850,1734775885599,-151.0,0.0002,2]
[346208851,1734775885608,-500.0,0.0002,2]
[346208852,1734775885617,-2498.1,0.0002,2]
[346208853,1734775885626,-500.0,0.0002,2]
[346208854,1734775885635,-500.0,0.0002,2]
[346208855,1734775885644,-16473.89,0.0002,2]
[346208856,1734775885653,-961.49,0.0002,2]
[346208857,1734775885662,-151.0,0.0002,2]
[346208858,1734775885671,-576.11,0.0002,2]
[346208859,1734775885679,-500.0,0.0002,2]
[346208860,1734775885688,-682.72,0.0002,2]
[346208861,1734775885698,-367.12968479,0.0002,2]
[346208862,1734775885707,-947.84,0.0002,2]
[346208863,1734775885716,-608.13,0.0002,2]
[346208864,1734775885724,-2207.4,0.0002,2]
[346208865,1734775885734,-500.0,0.0002,2]
[346208866,1734775885743,-500.0,0.0002,2]
[346208867,1734775885752,-616.43,0.0002,2]
[346208868,1734775885761,-641.08,0.0002,2]
[346208869,1734775885771,-703.62,0.0002,2]
[346208870,1734775885781,-819.35,0.0002,2]
[346208871,1734775885790,-1708.42,0.0002,2]
[346208872,1734775885799,-500.0,0.0002,2]
[346208873,1734775885810,-827.89,0.0002,2]
[346208874,1734775885819,-500.0,0.0002,2]
[346208875,1734775885828,-1594.45,0.0002,2]
[346208876,1734775885837,-877.93,0.0002,2]
[346208877,1734775885846,-7414.834697,0.0002,2]
[346208878,1734775885855,-1310.13,0.0002,2]
[346208879,1734775885864,-500.0,0.0002,2]
[346208880,1734775885873,-500.0,0.0002,2]
[346208881,1734775885882,-663.97,0.0002,2]
[346208882,1734775885891,-7414.834697,0.0002,2]
[346208883,1734775885900,-153.027635,0.0002,2]
[346208884,1734775885912,-500.0,0.0002,2]
[346208885,1734775885923,-2854.57,0.0002,2]
[346208886,1734775885933,-500.0,0.0002,2]
[346208887,1734775885941,-500.0,0.0002,2]
[346208888,1734775885952,-500.0,0.0002,2]
[346208889,1734775885962,-500.0,0.0002,2]
[346208890,1734775885972,-150.0,0.00020019,4]
[346208891,1734775885981,-150.0,0.00020039,4]
[346208892,1734775885990,-603.83701071,0.00020051,2]
[346208893,1734775885999,-2723.46565308,0.00020083,2]
[346208894,1734775886008,-191.98120253,0.00020124,2]
[346208895,1734775886018,-150.0,0.00020127,4]
[346208896,1734775886028,-718.98,0.00020136,2]
[346208897,1734775886037,-151.351655,0.00020153,2]
[346208898,1734775886050,-151.0,0.00020153,2]
[346208899,1734775886060,-154.494808,0.00020153,2]
[346208900,1734775886069,-151.0,0.00020153,2]
[346208901,1734775886078,-159.090281,0.00020153,2]
[346208902,1734775886091,-151.382943,0.00020153,2]
[346208903,1734775886101,-1084.441464,0.00020153,2]
[346208904,1734775886110,-1084.441464,0.00020153,2]
[346208905,1734775886121,-929.73057511,0.00020185,2]
[346208906,1734775886130,-2648.0,0.000202,2]
[346208907,1734775886139,-150.0,0.00020215,4]
[346208908,1734775886148,-150.0,0.00020215,4]
[346208909,1734775886158,-150.0,0.00020264,4]
[346208910,1734775886168,-500.0,0.00020272,2]
[346208911,1734775886178,-500.0,0.00020272,2]
[346208912,1734775886187,-1703.59,0.00020272,2]
[346208913,1734775886196,-1703.59,0.00020272,2]
[346208914,1734775886206,-3277.2268947,0.00020273,2]
[346208915,1734775886216,-1315.92517,0.00020273,2]
[346208916,1734775886226,-2060.745603,0.00020273,2]
[346208917,1734775886235,-500.0,0.00020273,2]
[346208918,1734775886244,-248.71961877,0.00020273,2]
[346208919,1734775886253,-154.14021,0.00020273,2]
[346208920,1734775886262,-153.090772,0.00020273,2]
[346208921,1734775886271,-500.0,0.00020273,2]
[346208922,1734775886280,-500.0,0.00020273,2]
[346208923,1734775886290,-500.0,0.00020273,2]
[346208924,1734775886299,-593.81757688,0.00020273,2]
[346208925,1734775886308,-500.0,0.00020273,2]
[346208926,1734775886317,-500.0,0.00020273,2]
[346208927,1734775886327,-500.0,0.00020273,2]
[346208928,1734775886336,-500.0,0.00020273,2]
[346208929,1734775886344,-500.0,0.00020273,2]
[346208930,1734775886354,-500.0,0.00020273,2]
[346208931,1734775886363,-500.0,0.00020273,2]
[346208932,1734775886372,-500.0,0.00020273,2]
[346208933,1734775886381,-500.0,0.00020273,2]
[346208934,1734775886390,-500.0,0.00020273,2]
[346208935,1734775886399,-500.0,0.00020273,2]
[346208936,1734775886409,-151.0,0.00020273,2]
[346208937,1734775886418,-151.0,0.00020273,2]
[346208938,1734775886427,-726.79,0.00020273,2]
[346208939,1734775886436,-151.0,0.00020273,2]
[346208940,1734775886446,-197.55772,0.00020273,2]
[346208941,1734775886455,-532.67,0.00020273,2]
[346208942,1734775886464,-500.0,0.00020273,2]
[346208943,1734775886474,-151.0,0.00020273,2]
[346208944,1734775886483,-500.0,0.00020273,2]
[346208945,1734775886492,-694.79,0.00020273,2]
[346208946,1734775886501,-151.0,0.00020273,2]
[346208947,1734775886510,-391.3,0.00020273,2]
[346208948,1734775886521,-151.0,0.00020273,2]
[346208949,1734775886531,-545.1,0.00020273,2]
[346208950,1734775886541,-500.0,0.00020273,2]
[346208951,1734775886550,-500.0,0.00020273,2]
[346208952,1734775886559,-500.0,0.00020273,2]
[346208953,1734775886569,-500.0,0.00020273,2]
[346208954,1734775886578,-500.0,0.00020273,2]
[346208955,1734775886588,-500.0,0.00020273,2]
[346208956,1734775886597,-500.0,0.00020273,2]
[346208957,1734775886607,-500.0,0.00020273,2]
[346208958,1734775886616,-151.992091,0.00020273,2]
[346208959,1734775886625,-725.56,0.00020273,2]
[346208960,1734775886635,-504.39094649,0.00020273,2]
[346208961,1734775886644,-500.0,0.00020273,2]
[346208962,1734775886653,-500.0,0.00020273,2]
[346208963,1734775886663,-628.09,0.00020273,2]
[346208964,1734775886672,-500.0,0.00020273,2]
[346208965,1734775886681,-151.0,0.00020273,2]
[346208966,1734775886690,-500.0,0.00020273,2]
[346208967,1734775886699,-500.0,0.00020273,2]
[346208968,1734775886709,-500.0,0.00020273,2]
[346208969,1734775886719,-500.0,0.00020273,2]
[346208970,1734775886728,-709.26,0.00020273,2]
[346208971,1734775886738,-500.0,0.00020273,2]
[346208972,1734775886747,-500.0,0.00020273,2]
[346208973,1734775886757,-709.06,0.00020273,2]
[346208974,1734775886766,-500.0,0.00020273,2]
[346208975,1734775886776,-247.19884228,0.00020273,2]
[346208976,1734775886786,-500.0,0.00020273,2]
[346208977,1734775886795,-832.53,0.00020273,2]
[346208978,1734775886804,-500.0,0.00020273,2]
[346208979,1734775886814,-500.0,0.00020273,2]
[346208980,1734775886823,-432.43243566,0.00020273,2]
[346208981,1734775886833,-500.0,0.00020273,2]
[346208982,1734775886842,-500.0,0.00020273,2]
[346208983,1734775886852,-500.0,0.00020273,2]
[346208984,1734775886861,-500.0,0.00020273,2]
[346208985,1734775886871,-500.0,0.00020273,2]
[346208986,1734775886880,-500.0,0.00020273,2]
[346208987,1734775886890,-500.0,0.00020273,2]
[346208988,1734775886899,-500.0,0.00020273,2]
[346208989,1734775886908,-500.0,0.00020273,2]
[346208990,1734775886917,-500.0,0.00020273,2]
[346208991,1734775886927,-500.0,0.00020273,2]
[346208992,1734775886937,-500.0,0.00020273,2]
[346208993,1734775886946,-500.0,0.00020273,2]
[346208994,1734775886956,-542.39723559,0.00020273,2]
[346208995,1734775886966,-151.0,0.00020273,2]
[346208996,1734775886975,-500.0,0.00020273,2]
[346208997,1734775887148,-513.59378305,0.00020273,2]
[346208998,1734775887158,-151.0,0.00020273,2]
[346208999,1734775887168,-500.0,0.00020273,2]
[346209000,1734775887177,-2005.535627,0.00020273,2]
[346209001,1734775887186,-323.22895471,0.00020273,2]
[346209002,1734775887196,-500.0,0.00020273,2]
[346209003,1734775887205,-500.0,0.00020273,2]
[346209004,1734775887215,-500.0,0.00020273,2]
[346209005,1734775887225,-500.0,0.00020273,2]
[346209006,1734775887235,-500.0,0.00020273,2]
[346209007,1734775887244,-500.0,0.00020273,2]
[346209008,1734775887253,-500.0,0.00020273,2]
[346209009,1734775887263,-500.0,0.00020273,2]
[346209010,1734775887274,-500.0,0.00020273,2]
[346209011,1734775887284,-500.0,0.00020273,2]
[346209012,1734775887293,-219.023894,0.00020273,2]
[346209013,1734775887303,-293.966387,0.00020273,2]
[346209014,1734775887312,-219.023894,0.00020273,2]
[346209015,1734775887322,-500.0,0.00020273,2]
[346209016,1734775887331,-500.0,0.00020273,2]
[346209017,1734775887342,-500.0,0.00020273,2]
[346209018,1734775887352,-151.0,0.00020273,2]
[346209019,1734775887361,-200.554304,0.00020273,2]
[346209020,1734775887371,-151.0,0.00020273,2]
[346209021,1734775887381,-500.0,0.00020273,2]
[346209022,1734775887390,-500.0,0.00020273,2]
[346209023,1734775887400,-500.0,0.00020273,2]
[346209024,1734775887409,-500.0,0.00020273,2]
[346209025,1734775887418,-500.0,0.00020273,2]
[346209026,1734775887428,-500.0,0.00020273,2]
[346209027,1734775887438,-151.0,0.00020273,2]
[346209028,1734775887447,-500.0,0.00020273,2]
[346209029,1734775887456,-500.0,0.00020273,2]
[346209030,1734775887467,-500.0,0.00020273,2]
[346209031,1734775887476,-3009.64,0.00020273,2]
[346209032,1734775887485,-1290.83,0.00020273,2]
[346209033,1734775887495,-500.0,0.00020273,2]
[346209034,1734775887504,-500.0,0.00020273,2]
[346209035,1734775887513,-1763.28,0.00020273,2]
[346209036,1734775887524,-1110.5,0.00020273,2]
[346209037,1734775887534,-151.0,0.00020273,2]
[346209038,1734775887544,-270.94491491,0.00020273,2]
[346209039,1734775887553,-500.0,0.00020273,2]
[346209040,1734775887563,-151.0,0.00020273,2]
[346209041,1734775887572,-500.0,0.00020273,2]
[346209042,1734775887582,-500.0,0.00020273,2]
[346209043,1734775887592,-500.0,0.00020273,2]
[346209044,1734775887601,-554.22,0.00020273,2]
[346209045,1734775887611,-274.4,0.00020273,2]
[346209046,1734775887620,-500.0,0.00020273,2]
[346209047,1734775887630,-500.0,0.00020273,2]
[346209048,1734775887639,-500.0,0.00020273,2]
[346209049,1734775887649,-1310.29,0.00020273,2]
[346209050,1734775887660,-500.0,0.00020273,2]
[346209051,1734775887671,-500.0,0.00020273,2]
[346209052,1734775887682,-500.0,0.00020273,2]
[346209053,1734775887693,-782.42,0.00020273,2]
[346209054,1734775887703,-500.0,0.00020273,2]
[346209055,1734775887715,-351.02872488,0.00020273,2]
[346209056,1734775887725,-500.0,0.00020273,2]
[346209057,1734775887737,-500.0,0.00020273,2]
[346209058,1734775887747,-500.0,0.00020273,2]
[346209059,1734775887759,-500.0,0.00020273,2]
[346209060,1734775887770,-500.0,0.00020273,2]
[346209061,1734775887779,-500.0,0.00020273,2]
[346209062,1734775887788,-500.0,0.00020273,2]
[346209063,1734775887797,-500.0,0.00020273,2]
[346209064,1734775887807,-500.0,0.00020273,2]
[346209065,1734775887816,-1344.59,0.00020273,2]
[346209066,1734775887825,-500.0,0.00020273,2]
[346209067,1734775887834,-500.0,0.00020273,2]
[346209068,1734775887843,-500.0,0.00020273,2]
[346209069,1734775887853,-500.0,0.00020273,2]
[346209070,1734775887863,-500.0,0.00020273,2]
[346209071,1734775887871,-500.0,0.00020273,2]
[346209072,1734775887882,-500.0,0.00020273,2]
[346209073,1734775887892,-500.0,0.00020273,2]
[346209074,1734775887903,-500.0,0.00020273,2]
[346209075,1734775887915,-997.25,0.00020273,2]
[346209076,1734775887925,-500.0,0.00020273,2]
[346209077,1734775887935,-681.25,0.00020273,2]
[346209078,1734775887946,-151.0,0.00020273,2]
[346209079,1734775887955,-2209.2,0.00020273,2]
[346209080,1734775887965,-600.53,0.00020273,2]
[346209081,1734775887974,-500.0,0.00020273,2]
[346209082,1734775887983,-500.0,0.00020273,2]
[346209083,1734775887993,-500.0,0.00020273,2]